Workbook

Sheet 1. Forside
A1: Brønderslev Vand A/S
D8: Bilag A
D13: Indholdsfortegnelse
C16: Fane nr. 2 | D16: Samlet prisloft
C17: Fane nr. 3 | D17: Driftsomkostninger
C18: Fane nr. 4 | D18: Historiske investeringer
C19: Fane nr. 5 | D19: Gennemførte investeringer
C20: Fane nr. 6 | D20: Korrektion investeringer
C21: Fane nr. 7 | D21: Planlagte investeringer
C22: Fane nr. 8 | D22: 1:1 omkostninger
C23: Fane nr. 9 | D23: Miljø- og servicemål
C24: Fane nr. 10 | D24: Nettofinansielle poster
C25: Fane nr. 11 | D25: Over- eller underdækning
C26: Fane nr. 12 | D26: Kontrol med indtægtsrammen og oversigt over ekstraordinære effektiviseringsgevinster

Sheet 2. Samlet prisloft
A1: ='1. Forside'!A1 -> Brønderslev Vand A/S
B4: Fane 2. Samlet prisloft for 2015
B6: Driftsomkostninger
B7: Driftsomkostninger i prisloftet for 2014 | C7: ='3. Driftsomkostninger'!C21 -> 6052046.265 | D7: kr.
B8: Bortfald af væsentlige omkostninger | C8: =-'3. Driftsomkostninger'!C17 -> 0 | D8: kr.
B9: Korrektion for prisudviklingen 2014-2015 | C9: ='3. Driftsomkostninger'!C23 -> 4841.637012 | D9: kr.
B10: Forhøjelse til effektivt niveau iht. benchmarkingen | C10: ='3. Driftsomkostninger'!C29 -> 0 | D10: kr.
B11: Korrektion for generelt effektiviseringskrav | C11: =-'3. Driftsomkostninger'!C35 -> -26629.00357 | D11: kr.
B12: Korrektion for individuelt effektiviseringskrav | C12: =-'3. Driftsomkostninger'!C44 -> -302602.3133 | D12: kr.
B13: Driftsomkostninger i alt | C13: =SUM(C7:C12) -> 5727656.585 | D13: kr. | E13: =C13 -> 5727656.585 | F13: kr.
B14: Investeringer
B15: Tillæg for historiske investeringer | C15: ='4. Historiske investeringer'!C9 -> 4544820.207 | D15: kr.
B16: Tillæg for gennemførte investeringer i 2011-2013 | C16: ='5. Gennemførte investeringer'!F13 -> 533339.945 | D16: kr.
B17: Korrektion af tillæg for planlagte investeringer vedrørende 2013 | C17: ='6. Korrektion investeringer'!C10 -> -144229.36 | D17: kr.
B18: Tillæg for planlagte investeringer i 2014 og 2015 | C18: ='7. Planlagte investeringer'!F22 -> 919000 | D18: kr.
B19: Investeringstillæg i alt | C19: =SUM(C15:C18) -> 5852930.792 | D19: kr. | E19: =C19 -> 5852930.792 | F19: kr.
B20: Øvrige omkostninger mv.
B21: Tillæg for 1:1 omkostninger i 2015 | C21: ='8. 1-1 omkostninger'!C9 -> 58000 | D21: kr.
B22: Tillæg for afgift for ledningsført vand i 2015 | C22: ='8. 1-1 omkostninger'!C14 -> 5578300 | D22: kr.
B23: Tillæg vedr. revisorerklæringer og DANVA/FVD-kontingent | C23: ='8. 1-1 omkostninger'!C20 -> 53000 | D23: kr.
B24: Korrektion ift. faktiske 1:1 omkostninger i 2013 | C24: ='8. 1-1 omkostninger'!C26 -> -276310 | D24: kr.
B25: Tillæg for driftsomkostninger til miljø- og servicemål i 2015 | C25: ='9. Miljø- og servicemål'!C8 -> 100000 | D25: kr.
B26: Korrektion ift. faktiske driftsomkostninger til miljø- og servicemål i 2013 | C26: ='9. Miljø- og servicemål'!C15 -> -51210 | D26: kr.
B27: Tillæg/fradrag for nettofinansielle poster i 2015 | C27: ='10. Nettofinansielle poster'!C9 -> 250000 | D27: kr.
B28: Korrektion ift. faktiske nettofinansielle poster i 2013 | C28: ='10. Nettofinansielle poster'!C16 -> -132900 | D28: kr.
B29: Øvrige omkostninger mv. i alt | C29: =SUM(C21:C28) -> 5578880 | D29: kr. | E29: =C29 -> 5578880 | F29: kr.
B30: Historisk over- eller underdækning
B31: Tillæg/fradrag for over- eller underdækning til og med 2010 | C31: ='11. Over- eller underdækning'!C11 -> -62112.87566 | D31: kr. | E31: =C31 -> -62112.87566 | F31: kr.
B32: Korrektion i forhold til tidligere indtægtsramme
B33: Korrektion for overholdelse af indtægtsramme i prisloft 2013 | C33: ='12. Kontrol med indtægtsrammen'!E27 -> 312584.658 | D33: kr. | E33: =C33 -> 312584.658 | F33: kr.
B34: Samlet prisloft
B35: Indtægtsramme i 2015 | E35: =SUM(E13:E33) -> 17409939.16 | F35: kr.
B36: Debiteret vandmængde i 2013 | E36: 904328 | F36: m3
B37: Prisloft 2015 | E37: =E35/E36 -> 19.25179709 | F37: kr./m3
B38: Prisloft 2015 ekskl. afgift for ledningsført vand | E38: =(E35-C22)/E36 -> 13.08334936 | F38: kr./m3

Sheet 3. Driftsomkostninger
A1: ='1. Forside'!A1 -> Brønderslev Vand A/S
B4: Fane 3. Driftsomkostninger
B6: Driftsomkostningerne i prisloftet for 2014
B7: Korrigerede driftsomkostninger i prisloftet for 2013 (DOiPL 2013) | C7: 7962012 | D7: kr.
B8: Prisfremskrivning 1,5 pct. | C8: =0.015*SUM(C7:C7) -> 119430.18 | D8: kr.
B9: Generelt effektiviseringskrav (0 pct.) | C9: 0 | D9: kr.
B10: Individuelt effektiviseringskrav | C10: -313578 | D10: kr.
B11: Bortfald af midlertidigt tillæg iht. § 8, stk. 5 (inkl. prisfremskrivning) | C11: =-1.015*1690461 -> -1715817.915 | D11: kr.
B12: Driftsomkostningerne i prisloftet for 2014 (DOiPL 2014) (korrigeret for bortfald af midlertidigt tillæg) | C12: =SUM(C7:C11) -> 6052046.265 | D12: kr.
B15: Korrektion for forventet bortfald af væsentlige omkostninger
B16: Selskabets indberettede bortfald af væsentlige omkostninger inden 2015 | C16: 0 | D16: kr.
B17: Korrektion for forventet bortfald | C17: =SUM(C16:C16) -> 0 | D17: kr.
B20: Korrektion for prisudviklingen fra 2014-2015
B21: Driftsomkostningerne i prisloftet for 2014 | C21: =C12-C17 -> 6052046.265 | D21: kr.
B22: Prisudvikling 2014 - 2015 | C22: 0.08 | D22: pct.
B23: Korrektion for prisudvikling | C23: =C21*(C22/100) -> 4841.637012 | D23: kr.
B26: Eventuel forhøjelse til effektivt niveau iht. benchmarkingen
B27: Selskabets effektive driftsomkostninger iht. benchmarkingen | C27: 3234819 | D27: kr.
B28: Selskabets pristalskorrigerede driftsomkostninger i 2015-niveau | C28: =C21+C23 -> 6056887.902 | D28: kr.
B29: Eventuel forhøjelse til effektivt niveau | C29: =IF(C28>C27,0,C27-C28) -> 0 | D29: kr.
B32: Korrektion for generelt effektiviseringskrav
B33: Driftsomkostningerne i prisloftet for 2014 | C33: =C21 -> 6052046.265 | D33: kr.
B34: Generelt effektiviseringskrav | C34: 0.44 | D34: pct.
B35: Endeligt generelt effektiviseringskrav | C35: =C33*(C34/100) -> 26629.00357 | D35: kr.
B38: Korrektion for individuelt effektiviseringskrav
B39: Rå effektiviseringspotentiale | C39: 2817227 | D39: kr.
B40: Effektiviseringspotentiale efter eventuel korrektion for særlige forhold | C40: 2817227 | D40: kr.
B41: Effektiviseringspotentiale efter forsigtighedshensyn | C41: 1832560 | D41: kr.
B42: Effektiviseringspotentiale efter eventuel korrektion for sammensætning af signifikante costdrivere | C42: 1832560 | D42: kr.
B43: Umiddelbart effektiviseringskrav | C43: =C42/4 -> 458140 | D43: kr.
B44: Endeligt individuelt effektiviseringskrav | C44: =IF(C43>0.05*C21,0.05*C21,IF(C43<0.01*C21,0,C43)) -> 302602.3133 | D44: kr.

Sheet 4. Historiske investeringer
A1: ='3. Driftsomkostninger'!A1 -> Brønderslev Vand A/S
B4: Fane 4. Historiske investeringer
B6: Tillæg for historiske investeringer
B7: Værdi af selskabets materielle anlægsaktiver pr. 1. januar 2010 | C7: 222640255.8 | D7: kr.
B8: Den årlige standardafskrivning på de materielle anlægsaktiver iht. POLKA | C8: 4544820.207 | D8: kr.
B9: Tillæg i alt i 2015 | C9: =C8 -> 4544820.207 | D9: kr.

Sheet 5. Gennemførte investeringer
A1: ='4. Historiske investeringer'!A1 -> Brønderslev Vand A/S
B4: Fane 5. Gennemførte investeringer i 2010 - 2013
B6: Tillæg for gennemførte investeringer i 2013
B7: Beskrivelse af investeringen | C7: Årstal | D7: Std. levetid (år) | E7: Anskaffelses-pris (kr.) | F7: Afskrivning
B8: Boring (inkl. etablering, forerør, filter og prøvepumpning) | C8: 2013 | D8: 30 | E8: 825725 | F8: =E8/D8 -> 27524.16667 | G8: kr.
B9: Stik på ledningsnet, Konstruktioner | C9: 2013 | D9: 75 | E9: 802065 | F9: 10694.2 | G9: kr.
B10: Ø 50mm < Ledningsnet = Ø110 mm | C10: 2013 | D10: 75 | E10: 2401284 | F10: 32017.12 | G10: kr.
B11: Tillæg for 2013 | F11: =SUM(F8:F10) -> 70235.48667 | G11: kr.
B12: Tillæg for 2010 - 2012 | F12: 463104.4583 | G12: kr.
B13: Samlet tillæg for gennemførte investeringer | F13: =F11+F12 -> 533339.945 | G13: kr.

Sheet 6. Korrektion investeringer
A1: ='5. Gennemførte investeringer'!A1 -> Brønderslev Vand A/S
B4: Fane 6. Korrektion af tillæg for planlagte investeringer
B6: Korrektion af tillæg for planlagte investeringer vedr. 2013
B7: Tillæg for planlagte investeringer i 2013 i prisloft 2013 | C7: 136667 | D7: kr.
B8: Tillæg for planlagte investeringer i 2013 i prisloft 2014 | C8: 148033.3333 | D8: kr.
B9: Selskabets faktiske afskrivninger på gennemførte investeringer i 2013 | C9: ='5. Gennemførte investeringer'!F11 -> 70235.48667 | D9: kr.
B10: Korrektion af tillæg for planlagte investeringer vedr. 2013 | C10: =C9-C7+C9-C8 -> -144229.36 | D10: kr.

Sheet 7. Planlagte investeringer
A1: ='6. Korrektion investeringer'!A1 -> Brønderslev Vand A/S
B4: Fane 7. Planlagte investeringer
B6: Tillæg for planlagte investeringer i 2014 og 2015
B7: Beskrivelse af investeringen | C7: Årstal | D7: Std. levetid (år) | E7: Anskaffelses-pris (kr.) | F7: Afskrivning
B8: SRO-brønd/kvarterbrønd/sektionsbrønd, Mek./EL | C8: 2014 | D8: 15 | E8: 500000 | F8: =E8/D8 -> 33333.33333 | G8: kr.
B9: Sikring, avanceret (hegne, porte og overvågningssystemer), Mek./EL | C9: 2014 | D9: 25 | E9: 350000 | F9: =E9/D9 -> 14000 | G9: kr.
B10: Boring (inkl. etablering, forerør, filter og prøvepumpning) | C10: 2014 | D10: 30 | E10: 1100000 | F10: =E10/D10 -> 36666.66667 | G10: kr.
B11: SRO anlæg | C11: 2014 | D11: 10 | E11: 350000 | F11: 35000 | G11: kr.
B12: Stik på ledningsnet, Konstruktioner | C12: 2014 | D12: 75 | E12: 500000 | F12: 6666.666667 | G12: kr.
B13: Instrumenter (flowmåler+tryk transducer+alarmer) | C13: 2014 | D13: 10 | E13: 100000 | F13: 10000 | G13: kr.
B14: Instrumenter (flowmåler+tryk transducer+alarmer) | C14: 2014 | D14: 10 | E14: 100000 | F14: 10000 | G14: kr.
B15: Afregningsmålere, elektroniske = Ø 110mm (Qn 10) | C15: 2014 | D15: 10 | E15: 6000000 | F15: 600000 | G15: kr.
B16: Afregningsmålere, elektroniske = Ø 110mm (Qn 10) | C16: 2015 | D16: 10 | E16: 1000000 | F16: 100000 | G16: kr.
B17: Råvandsstation komplet montering og boringshus/tørbrønd | C17: 2015 | D17: 30 | E17: 1000000 | F17: 33333.33333 | G17: kr.
B18: Stik på ledningsnet, Konstruktioner | C18: 2015 | D18: 75 | E18: 500000 | F18: 6666.666667 | G18: kr.
B19: Ø 50mm < Ledningsnet = Ø110 mm | C19: 2015 | D19: 75 | E19: 2500000 | F19: 33333.33333 | G19: kr.
B20: Tillæg for 2014 | F20: =SUMIF(C8:C19,"2014",F8:F19) -> 745666.6667 | G20: kr.
B21: Tillæg for 2015 | F21: =SUMIF(C8:C19,"2015",F8:F19) -> 173333.3333 | G21: kr.
B22: Tillæg i alt | F22: =F20+F21 -> 919000 | G22: kr.

Sheet 8. 1-1 omkostninger
A1: ='7. Planlagte investeringer'!A1 -> Brønderslev Vand A/S
B4: Fane 8. 1:1 omkostninger
B6: Tillæg for budgetterede 1:1 omkostninger i 2015
B7: Betaling til Forsyningssekretariatet | C7: 33000 | D7: kr.
B8: Ejendomsskatter | C8: 25000 | D8: kr.
B9: Tillæg i alt | C9: =SUM(C7:C8) -> 58000 | D9: kr.
B12: Tillæg for afgift for ledningsført vand i 2015
B13: Afgift for ledningsført vand (6,53 kr./m3) | C13: 5578300 | D13: kr.
B14: Tillæg i alt | C14: =SUM(C13:C13) -> 5578300 | D14: kr.
B17: Tillæg for budgetterede nødvendige udgifter til revisorerklæringer samt ordinært medlemskab af DANVA og FVD i 2015
B18: Betaling for ordinært medlemskab af DANVA/FVD | C18: 38000 | D18: kr.
B19: Betaling for revisorerklæringer | C19: 15000 | D19: kr.
B20: Tillæg i alt | C20: =SUM(C18:C19) -> 53000 | D20: kr.
B23: Korrektion af tillæg for faktiske 1:1 omkostninger (inkl. afgift for ledningsført vand, revisorerklæringer og ordinært medlemskab af DANVA/FVD) i 2013
B24: Selskabets faktiske 1:1 omkostninger mv. i 2013, jf. reguleringsregnskabet | C24: 5630261 | D24: kr.
B25: Tillæg for budgetterede 1:1 omkostninger mv. i prisloft 2013 | C25: 5906571 | D25: kr.
B26: Korrektion af tillæg for budgetterede 1:1 omkostninger mv. i 2013 | C26: =C24-C25 -> -276310 | D26: kr.

Sheet 9. Miljø- og servicemål
A1: ='8. 1-1 omkostninger'!A1 -> Brønderslev Vand A/S
B4: Fane 9. Driftsomkostninger til miljø- og servicemål
B6: Tillæg for budgetterede driftsomkostninger til miljø- og servicemål i 2015
B7: Dokumenteret Drikkevandssikkerhed (DDS) | C7: 100000 | D7: kr.
B8: Tillæg i alt | C8: =SUM(C7:C7) -> 100000 | D8: kr.
B12: Korrektion af tillæg for faktiske driftsomkostninger til miljø- og servicemål i 2013
B13: Selskabets faktiske driftsomkostninger til miljø- og servicemål i 2013, jf. reguleringsregnskabet | C13: 48790 | D13: kr.
B14: Tillæg for budgetterede driftsomkostninger til miljø- og servicemål i prisloft 2013 | C14: 100000 | D14: kr.
B15: Korrektion af tillæg for budgetterede driftsomkostninger til miljø- og servicemål i 2013 | C15: =C13-C14 -> -51210 | D15: kr.

Sheet 10. Nettofinansielle poster
A1: ='2. Samlet prisloft'!A1 -> Brønderslev Vand A/S
B4: Fane 10. Nettofinansielle poster
B6: Tillæg for budgetterede nettofinansielle poster i 2015
B7: Budgetterede renteudgifter og gebyrer i 2015 | C7: 250000 | D7: kr.
B8: Budgetterede renteindtægter i 2015 | C8: 0 | D8: kr.
B9: Tillæg/fradrag i alt | C9: =C7-C8 -> 250000 | D9: kr.
B13: Korrektion af tillæg for faktiske nettofinansielle poster i 2013
B14: Selskabets faktiske nettofinansielle poster i 2013, jf. reguleringsregnskabet | C14: 167100 | D14: kr.
B15: Tillæg for budgetterede nettofinansielle poster i prisloft 2013 | C15: 300000 | D15: kr.
B16: Korrektion af tillæg for budgetterede nettofinansielle poster i 2013 | C16: =C14-C15 -> -132900 | D16: kr.

Sheet 11. Over- eller underdækning
A1: ='1. Forside'!A1 -> Brønderslev Vand A/S
B4: Fane 11. Over- eller underdækning til og med 2010
B6: Tillæg/fradrag for over- eller underdækning til og med 2010
B7: Opgjort over- eller underdækning per 31. december 2010 | C7: -310647 | D7: kr.
B8: Heraf beløb indregnet i prislofterne for 2011 - 2014 | C8: 62030.25397 | D8: kr.
B9: Endnu ikke indregnet over- eller underdækning | C9: =C7-C8 -> -372677.254 | D9: kr.
B10: Resterende indregningsperiode | C10: 6 | D10: år
B11: Tillæg/fradrag i alt | C11: =IF(C7=0,0,C9/C10) -> -62112.87566 | D11: kr.

Sheet 12. Kontrol med indtægtsrammen
A1: ='11. Over- eller underdækning'!A1 -> Brønderslev Vand A/S
B4: Fane 12. Korrektion for overholdelse af indtægtsrammen i prisloftet for 2013
B6: Samlet opgørelse vedrørende overholdelse af indtægtsrammen i prisloftet for 2013
B7: Indtægtsramme i prisloftet for 2013 | E7: 18141334.04 | F7: kr.
B8: Ikke anvendt likviditet vedrørende investeringer i 2013
B9: Tillæg for historiske investeringer | C9: 4723902.386 | D9: kr.
B10: Tillæg for gennemførte investeringer i 2011 | C10: 372434 | D10: kr.
B11: Korrektion af tillæg for planlagte investeringer i 2011 | C11: 139964 | D11: kr.
B12: Tillæg for planlagte investeringer i 2012 og 2013 | C12: 269833 | D12: kr.
B13: Indtægter fra tilslutningsbidrag | C13: 363699 | D13: kr.
B14: Indtægter fra salg af anlægsaktiver | C14: 0 | D14: kr.
B15: Erstatninger vedr. anlægsaktiver mv. | C15: 0 | D15: kr.
B16: Ekstraordinær effektiviseringsgevinst anvendt til investeringer | C16: 0 | D16: kr.
B17: Udgifter til investeringer | C17: -5166978 | D17: kr.
B18: Ikke anvendt likviditet vedr. investeringer i alt | C18: =SUM(C9:C17) -> 702854.3861 | D18: kr. | E18: =IF(C18<0,0,-C18) -> -702854.3861 | F18: kr.
B19: Ekstraordinære effektiviseringsgevinster anvendt til takstnedsættelse
B20: Ekstraordinær effektiviseringsgevinst anvendt til takstnedsættelse | C20: 0 | D20: kr. | E20: =-C20 -> 0 | F20: kr.
B21: Korrektion af ikke opkrævet tillæg fra 2011 i prisloft 2013
B22: Korrektion af ikke opkrævet tillæg fra 2011 i prisloft 2013 | C22: 0 | D22: kr. | E22: =-C22 -> 0 | F22: kr.
B23: Indtægter fra primære aktiviteter mv.
B24: Indtægter fra kubikmetertakster, faste takster, særbidrag, målergebyrer samt andre takster og gebyrer | C24: 17125895 | D24: kr.
B25: Andre indtægter i prisloftåret, som selskabet har opnået i forbindelse med eller som følge af selskabets primære aktiviteter | C25: 0 | D25: kr.
B26: Indtægter fra primære aktiviteter mv. i alt | C26: =SUM(C24:C25) -> 17125895 | D26: kr. | E26: =-C26 -> -17125895 | F26: kr.
B27: Tillæg/fradrag i prisloftet for 2015 i alt | E27: =E7+E18+E20+E22+E26 -> 312584.658 | F27: kr.
B31: Oversigt over ekstraordinære effektiviseringsgevinster
C33: 2012 | E33: 2013 | G33: 2014 | I33: 2015 | K33: 2016
B34: Indhentet ekstraordinær effektiviseringsgevinst | C34: 167662 | D34: kr. | E34: 1214587.658 | F34: kr. | H34: kr. | J34: kr. | L34: kr.
B35: Gevinst anvendt til investeringer | C35: 0 | D35: kr. | E35: 0 | F35: kr. | H35: kr. | J35: kr. | L35: kr.
B36: Gevinst anvendt til takstnedsættelse | C36: 167662 | D36: kr. | E36: 0 | F36: kr. | H36: kr. | J36: kr. | L36: kr.
B37: Korrektion for effektiviseringsgevinst der ikke er anvendt inden 4 år | C37: 0 | D37: kr. | E37: 0 | F37: kr. | H37: kr. | J37: kr. | K37: =IF(C38>SUM(E35:I36),C38-SUM(E35:I36),0)*-1 -> 0 | L37: kr.
B38: Resterende gevinst | C38: =C34-C35-C36 -> 0 | D38: kr. | E38: =C38+E34-E35-E36 -> 1214587.658 | F38: kr. | G38: =E38+G34-G35-G36 -> 1214587.658 | H38: kr. | I38: =G38+I34-I35-I36 -> 1214587.658 | J38: kr. | K38: =K34-K35-K36+K37+I38 -> 1214587.658 | L38: kr.
